Cogmind - Beta 13 X1 @@@ ROGUE MODE // 2023.07.21 @ 02:08:05 Player: maxwell Result: Destroyed by LT-8V9(R) with Subdweller Machine Gun Performance ------------- Evolutions (0) 0 Regions Visited (2) 400 Robots Destroyed (16) 80 Value Destroyed (526) 526 Prototype IDs (0) 0 Alien Tech Used (0) 0 Bonus (0) 0 TOTAL SCORE: 1006 Bonus ------- None Cogmind --------- Core Integrity 0/250 Matter 290/300 Energy 200/200 System Corruption 0% Temperature Cool (0) Movement Rolling (150) Ox4 Location -10/Subcaves Parts ------- > --- POWER (1) -------- Subdweller Power Source > --- PROPULSION (2) --- Spiked Treads Subdweller Monowheel > --- UTILITY (2) ------ Huge Storage Unit Makeshift Armor Plating > --- WEAPON (2) ------- Subdweller Laser Barrage Gun > --- INVENTORY (25) --- Ion Engine Subdweller Power Source Subdweller Power Source Subdweller Power Source Light Treads Aluminum Leg Compact Wheel Subdweller Monowheel Subdweller Monowheel Disposable Heat Sink Small Storage Unit Subdweller Optics Cobbler Unit Subdweller Laser Makeshift Laser Subdweller Machine Gun Subdweller Machine Gun Subdweller Machine Gun Subdweller Machine Gun Battle Cannon Subdweller Shrapnel Launcher Subdweller Shrapnel Launcher Peak State ------------ > --- POWER ------------ Subdweller Power Source > --- PROPULSION ------- Spiked Treads Subdweller Monowheel > --- UTILITY ---------- Huge Storage Unit Makeshift Armor Plating > --- WEAPON ----------- Subdweller Laser Barrage Gun > --- INVENTORY -------- Ion Engine Subdweller Power Source Subdweller Power Source Subdweller Power Source Light Treads Aluminum Leg Compact Wheel Subdweller Monowheel Subdweller Monowheel Disposable Heat Sink Small Storage Unit Subdweller Optics Cobbler Unit Makeshift Laser Subdweller Machine Gun Subdweller Machine Gun Subdweller Machine Gun Subdweller Machine Gun Battle Cannon Subdweller Shrapnel Launcher Subdweller Shrapnel Launcher [Rating: 20] Favorites ----------- Power Subdweller Power Source Engine Subdweller Power Source Propulsion Aluminum Leg Treads Light Treads Leg Aluminum Leg Wheel Subdweller Monowheel Utility Huge Storage Unit Device Subdweller Optics Storage Huge Storage Unit Protection Makeshift Armor Plating Weapon Barrage Gun Energy Gun Makeshift Laser Ballistic Gun Barrage Gun Build | -11 -10 -10 ------- Run | Jun Mat Sub Slots Evolved . | . . . Power . | . . . Propulsion . | . . . Utility . | . . . Weapon . | . . . Parts Attached 23 | . . 23 Power 2 | . . 2 Engine 2 | . . 2 Core . | . . . Reactor . | . . . Propulsion 10 | . . 10 Treads 5 | . . 5 Leg 1 | . . 1 Wheel 4 | . . 4 Hover . | . . . Flight . | . . . Utility 3 | . . 3 Device 1 | . . 1 Storage 1 | . . 1 Processor . | . . . Hackware . | . . . Protection 1 | . . 1 Artifact . | . . . Weapon 8 | . . 8 Energy Gun 4 | . . 4 Energy Cannon . | . . . Ballistic Gun 4 | . . 4 Ballistic Cannon . | . . . Launcher . | . . . Special Weapon . | . . . Impact Weapon . | . . . Slashing Weapon . | . . . Piercing Weapon . | . . . Special Melee Weapon . | . . . Unidentified Prototypes . | . . . Parts Lost 12 | . . 12 Power 2 | . . 2 Propulsion 4 | . . 4 Utility 1 | . . 1 Weapon 5 | . . 5 Highest Loss Streak 5 | . . 5 To Critical Strikes 1 | . . 1 Average Slot Usage (%) 87 | . 85 88 Engine 10 | . 14 9 Treads 10 | . . 12 Leg 7 | . 28 3 Wheel 9 | . . 11 Device 3 | . . 4 Storage 14 | . 14 14 Protection 3 | . . 3 Energy Gun 14 | . 14 15 Ballistic Gun 12 | . 14 12 Naked Turns . | . . . Heaviest Build 96 | 11 11 96 Greatest Support 40 | 20 20 40 Greatest Overweight (x) 5 | . . 5 Average Overweight (x) 1 | . . 2 Largest Inventory Capacity 25 | . 8 25 Average Capacity 16 | . 8 18 Most Carried 23 | . 8 23 Average Carried 12 | . 6 13 Final Capacity 25 | 8 8 25 Final Carried 23 | 6 8 23 Class Distribution -------------------- 53% | Derelict-Mutant 46% | Mutant Dominant Class ---------------- Mutant | -10/Materials Derelict-Mutant | -10/Subcaves Resources | -11 -10 -10 ----------- Run | Jun Mat Sub Matter Collected 639 | 178 36 425 Remotely . | . . . Salvage Created 706 | . 76 630 Parts 36 | . 7 29 Haulers Intercepted . | . . . Recyclers Shooed . | . . . Parts Field Recycled . | . . . Retrieved Matter . | . . . Parts Self-Destructed 2 | . . 2 Prevented . | . . . Kills | -11 -10 -10 ------- Run | Jun Mat Sub Combat Hostiles Destroyed 15 | . 3 12 Guns 14 | . 3 11 AOE 1 | . . 1 Classes Destroyed 4 | . 2 2 Watcher 1 | . 1 . Swarmer 3 | . 3 . Cobbler 1 | . . 1 Subdweller 12 | . . 12 Best Kill Streak 4 | . 4 3 Combat Bots Only 3 | . 3 3 Max Kills in Single Turn 1 | . 1 1 Gunslinging . | . . . Exploded 1 | . . 1 Melee . | . . . Uniques/NPCs Destroyed . | . . . Combat | -11 -10 -10 -------- Run | Jun Mat Sub Damage Taken 1739 | . 201 1538 Core 250 | . 39 211 Absorbed by Shields . | . . . Core Remaining (%) 100 | 100 . . Volleys Fired 85 | . 14 71 Largest 2 | . 2 2 Hottest 88 | . 60 88 Shots Fired 166 | . 28 138 Gun 166 | . 28 138 Cannon . | . . . Launcher . | . . . Special . | . . . Kinetic 105 | . 14 91 Thermal 36 | . . 36 Explosive . | . . . Electromagnetic 25 | . 14 11 Robot Hit Streak 14 | . 4 14 Robot Miss Streak 4 | . 3 4 Penetration Max . | . . . Secondary Targets 2 | . 1 1 Max Gunslinging Chain 1 | . 1 1 Shots Hit Robots 120 | . 13 107 Core Hits 30 | . 4 26 Critical Kills 1 | . . 1 Critical Parts Destroyed . | . . . Critical Strikes 6 | . . 6 Burn 4 | . . 4 Destroy 2 | . . 2 Melee Attacks . | . . . Impact . | . . . Slashing . | . . . Piercing . | . . . Sneak Attacks . | . . . Combat Hostiles . | . . . Follow-up Attacks . | . . . Damage Inflicted 1815 | . 147 1668 Guns 1779 | . 147 1632 Cannons . | . . . Explosions 36 | . . 36 Melee . | . . . Ramming . | . . . Kinetic 1210 | . 56 1154 Thermal 447 | . . 447 Explosive . | . . . Electromagnetic 158 | . 91 67 Impact . | . . . Slashing . | . . . Piercing . | . . . Highest Corruption . | . . . Average Corruption . | . . . Corruption Purged . | . . . Corruption Blocked . | . . . Overload Shots . | . . . Overflow Damage 42 | . . 42 Projectiles . | . . . Explosions 42 | . . 42 Melee . | . . . Knockbacks . | . . . Impact . | . . . Kinetic . | . . . Secondary . | . . . Self-Inflicted Damage 58 | . . 58 Shots 1 | . . 1 Rammed . | . . . Targets Rammed . | . . . Kicked . | . . . Crushed . | . . . Highest Temperature 268 | . 80 268 Average Temperature 44 | . 37 50 Received Heat Transfer 393 | . . 393 Siege Activations . | . . . Robots Corrupted . | . . . Combat Hostiles . | . . . Parts Fried . | . . . Impact Corruptions . | . . . Robots Melted . | . . . Combat Hostiles . | . . . Parts Melted 2 | . . 2 Heat Transferred 1067 | . . 1067 Parts Sabotaged . | . . . Parts Stolen . | . . . Parts Stripped . | . . . Power Chain Reactions 1 | . . 1 Missiles Intercepted . | . . . Alert | -11 -10 -10 ------- Run | Jun Mat Sub Peak Influence 92 | . 92 . Initial . | . . . Average 72 | . 72 . Maximum Alert Level . | . . . Low Security (%) 100 | . 100 . Level 1 . | . . . Level 2 . | . . . Level 3 . | . . . Level 4 . | . . . Level 5 . | . . . High Security . | . . . Max Security . | . . . Squads Dispatched . | . . . Investigation . | . . . Extermination . | . . . Reinforcement . | . . . Assault . | . . . Garrison . | . . . Intercept . | . . . Searches Triggered . | . . . Construction Impeded . | . . . Haulers Reinforced . | . . . Active Scanning Responses . | . . . Cargo Convoy Interrupts . | . . . Stealth | -11 -10 -10 --------- Run | Jun Mat Sub Distress Signals 1 | . 1 . Communications Jammed . | . . . Distress Signals . | . . . Times Spotted 18 | . 5 13 Peak Tracking Total 4 | . 4 2 Tactical Retreats . | . . . Traps | -11 -10 -10 ------- Run | Jun Mat Sub Traps Triggered . | . . . Indirectly . | . . . Trap Hack Attempts . | . . . Triggered . | . . . Disarmed . | . . . Reprogrammed . | . . . Reused . | . . . Traps Extracted . | . . . Installed . | . . . Triggered . | . . . Machines | -11 -10 -10 ---------- Run | Jun Mat Sub Machines Disabled . | . . . Max in Single Turn . | . . . Machines Repaired . | . . . Machines Sabotaged . | . . . Overloaded Fab Kills . | . . . Hacking | -11 -10 -10 --------- Run | Jun Mat Sub Machines Accessed . | . . . Terminals . | . . . Fabricators . | . . . Repair Stations . | . . . Recycling Units . | . . . Scanalyzers . | . . . Garrison Access . | . . . Total Hacks . | . . . Successful . | . . . Failed . | . . . Catastrophic . | . . . Database Lockouts . | . . . Manual . | . . . Terminals . | . . . Fabricators . | . . . Repair Stations . | . . . Recycling Units . | . . . Scanalyzers . | . . . Garrison Access . | . . . Terminal Hacks . | . . . Fabricator Hacks . | . . . Repair Station Hacks . | . . . Recycling Unit Hacks . | . . . Scanalyzer . | . . . Garrison Access Hacks . | . . . Unauthorized Hacks . | . . . Terminals . | . . . Fabricators . | . . . Repair Stations . | . . . Recycling Units . | . . . Scanalyzers . | . . . Garrison Access . | . . . Data Cores Recovered . | . . . Used . | . . . Hacking Detections . | . . . Full Trace Events . | . . . Feedback Events . | . . . Feedback Blocked . | . . . Robot Schematics Acquired . | . . . Robots Built . | . . . Authchips . | . . . Time . | . . . Total Robot Build Rating . | . . . Part Schematics Acquired . | . . . Parts Built . | . . . Authchips . | . . . Time . | . . . Total Part Build Rating . | . . . Parts Repaired . | . . . Time . | . . . Parts Recycled . | . . . Recycled Matter . | . . . Retrieved Matter . | . . . Retrieved Components . | . . . Parts Scanalyzed . | . . . Part Schematics Acquired . | . . . Parts Damaged . | . . . Bothacking | -11 -10 -10 ------------ Run | Jun Mat Sub Used RIF Installer . | . . . Robots Hacked . | . . . Non-combat . | . . . Combat . | . . . Robot Hacks Applied . | . . . Relay Couplers Released . | . . . Fabnet Peak Effective % . | . . . Robots Rewired . | . . . Allies Hacked . | . . . Hacks Repelled . | . . . Allies | -11 -10 -10 -------- Run | Jun Mat Sub Total Allies . | . . . Largest Group . | . . . Highest-Rated Group . | . . . Highest-Rated Ally . | . . . Total Orders . | . . . Ally Attacks . | . . . Total Damage . | . . . Kills . | . . . Allies Corrupted . | . . . Allies Melted . | . . . Intel | -11 -10 -10 ------- Run | Jun Mat Sub Robot Analysis Total . | . . . Derelict Logs Recovered 2 | . . 2 Drone Launches . | . . . Drone Recoveries . | . . . Exploration | -11 -10 -10 ------------- Run | Jun Mat Sub Turns Passed 1125 | . 173 952 Spaces Moved 550 | 1 110 439 Core . | . . . Treads 130 | . . 130 Legs 127 | 1 110 16 Wheels 293 | . . 293 Hover . | . . . Flight . | . . . Fastest Speed 120 | 120 120 120 Average Speed 141 | 120 120 146 Slowest Speed 480 | 120 120 480 Overloaded Moves . | . . . Propulsion Burnouts . | . . . Robots Hopped . | . . . Cave-ins Triggered . | . . . Exploration Rate (%) 18 | 2 17 35 Regions Visited 2 Branch Regions 1 Pre-discovered Areas . | . . . Known Exits Taken . | . . . Unknown Exits Taken 2 | 1 1 . Scrap Searched 4 | . . 4 Spaces Dug . | . . . Terrain Destroyed 11 | . . 11 Melee . | . . . Projectile 1 | . . 1 AOE 10 | . . 10 Terrain Rammed . | . . . Walls Destroyed . | . . . Machines Disabled . | . . . Actions | -11 -10 -10 --------- Run | Jun Mat Sub Total 738 | . 126 612 Wait 49 | . 1 48 Move 548 | . 109 439 Hop . | . . . Pick Up 30 | . 2 28 Fast Attach 2 | . . 2 Attach 11 | . . 11 Detach . | . . . Swap 10 | . . 10 Drop 3 | . . 3 Fire 85 | . 14 71 Melee . | . . . Ram . | . . . Kick . | . . . Crush . | . . . Escape Stasis . | . . . Rewire . | . . . Trap . | . . . Miscellaneous . | . . . Route ------- -11/Junkyard -10/Materials -10/Subcaves (discovered 1 exit: [*Mat]) History --------- Turn | Location | Event 1 | -11/Junkyard | Discovered new exit (range 0) 1 | -11/Junkyard | Entered Materials 165 | -10/Materials | Discovered new exit (range 7) 174 | -10/Materials | Entered Subcaves 290 | -10/Subcaves | Lost 5 parts (2p1n2w) 300 | -10/Subcaves | Build established: Mutant 316 | -10/Subcaves | Discovered new exit (range 12) 451 | -10/Subcaves | Shifting Twisted Machinery released Shrapnel Trap 480 | -10/Subcaves | Shifting Twisted Machinery released Hvy. Battle Rifle 590 | -10/Subcaves | Learned location of 1 exit from Materials 781 | -10/Subcaves | Ambushed by Subdwellers from Twisted Machinery 806 | -10/Subcaves | Core integrity fell below 50% 846 | -10/Subcaves | Build established: Derelict-Mutant 852 | -10/Subcaves | Lost 3 parts (1n2w) 1033 | -10/Subcaves | Learned Materials terminal intel 1093 | -10/Subcaves | Disturbed a concealed Subdweller 1097 | -10/Subcaves | Core integrity fell below 20% 1126 | -10/Subcaves | Destroyed by LT-8V9(R) with Subdweller Machine Gun Last Messages --------------- 00895_ Acquired Sub. Shrapnel Launcher. 00898_ Acquired Sub. Machine Gun. 00901_ Acquired 51 matter. 00910_ Acquired Sub. Power Source. 00913_ Acquired Sub. Monowheel. 00915_ Acquired 57 matter. 00920_ Acquired Sub. Optics. 00921_ Acquired 5 matter. 01033_ Acquired derelict log, extracted data. Data stored: Materials terminal intel. 01084_ Searching scrap... 01084_ Found Flamer. 01084_ Found Sub. Laser. 01084_ Found 20 Matter. 01085_ Acquired 14 matter. 01090_ Acquired Sub. Laser. 01093_ 2Z-439(R) angrily emerges from the Twisted Machinery. 01104_ 2Z-439(R) suffers critical hit (Destroy). 01104_ 2Z-439(R) destroyed. 01109_ Acquired 6 matter. Map ----- +----------------------------------------------------+ | ???????????????# # # ##?# #?????????? | | ???????????????# ### ""?????????? | | ???????????????# # """ """"""" ##???????? | | ???????????????# """"" """" #???????? | | ???????????????# ###"### " " #???????? | | ???????????????## #####?# ## " ##??????? | | ??????????????### ### ##"" "#??????? | | ??????????????# ## #??????? | | ??????????????# ## ????????? | | ??????????????## ##### ## #?????????? | | ???????????????######## ##????????? | | ?????????????????## ### #????????? | | ????????????????## ### ## ##????????? | | ???????????????## #### # #????????? | | ???????????????# #### ## ##????????? | | ???????????????# ##### #????????? | | ??????????????## ##?# ##????????? | | ??????????????# ### ####??????? | | ??????????????## ## #??????? | | ???????######??## ### #??????? | | ??????"""" ""#### ##?### #??????? | | ????# """"&" ### ##????## # #??????? | | ?????" ""& "! ## #?###### ## #??????? | | ?????"""" ""%& ## ## ## ##? #??????? | | ?????" " "# &| # # R #?? #??????? | | ??????????#### ##@ #???#??????? | | ????????????# #< ### #??????????? | | ????????????# ### ##??????????? | | ????????????# ##???????????? | | ????????????# # < ###??????????? | | ????????????#####< #???????? | | ????????????????# #????????? | | ????????????????## ""#????????? | | ?????????????????# "#?????????? | | ????????????????? ### ##?????????? | | ????????????????? #??? ###??????????? | | ?????????????????### #????#????????????? | | ????????????????????# ?????????????????? | | ?????????????????????# ????????????????? | | ??????????????????????### ???????????????? | | ?????????????????????????# ??????????????? | | ??????????????????????????# ?????????????? | | ???????????????????????????##????????????? | | ?????????????????????????????????????????? | | ?????????????????????????????????????????? | | ?????????????????????????????????????????? | | ?????????????????????????????????????????? | | ?????????????????????????????????????????? | | ?????????????????????????????????????????? | | ?????????????????????????????????????????? | +----------------------------------------------------+ Best States ------------- Heat Dissipation 25 Energy Generation 15 Energy Capacity 250 Matter Stores 300 Matter Capacity 300 Sight Range 21 Terrain Scan Density 10 Armor Coverage 100 Evasion (%) 55 Recoil Reduction 2 Item Schematics ----------------- None Robot Schematics ------------------ None Fabricated ------------ Nothing Alien Tech Used ----------------- None Achievements -------------- None Challenges ------------ None Game ------ Seed BehemothLauncherMount Manual? 0 Play Time 00:09:09 Cumulative 371.3 hours Start 2023.07.16 @ 00:47:04 End 2023.07.21 @ 02:08:05 Sessions 3 Manual Loads 0 Difficulty Rogue Special Mode None Game No. 548 Rogue 521 Adventurer 4 Explorer 23 Win Type - Total 20 Types 14/0/2/2/1/0/0/1/0 Lore% 81 Gallery% 91 Achievement% 83 Wizard Run 0 Options --------- ASCII 0 Keyboard 1 Movement Numpad Keybinds 0 Fullscreen 1 Font 18/SmallcapsGlow Map View 76x50 Tactical HUD 1 Map Filters NONE Filters NONE Steam 1 RUN: cb5abc2d-4061-4c1f-985b-c5aa047f1d17